bitfinex-derivatives/quotes_SOLF0:USTF0_20251020
["timestamp","ask_amount","ask_price","bid_price","bid_amount"]
[1760968054463,4.6744,192.51,192.41,4.6767]
[1760968054657,8.72114901,192.53,192.34,8.14977484]
[1760968054852,8.14977484,192.58,192.44,4.676]
[1760968055059,4.05164096,192.57,192.44,4.676]
[1760968055251,4.05164096,192.56,192.44,4.676]
[1760968055449,4.6739,192.54,192.44,4.676]
[1760968055651,8.72554096,192.54,192.44,4.676]
[1760968055859,4.05164096,192.53,192.44,4.676]
[1760968056362,4.05164096,192.53,192.45,4.6757]
[1760968056557,4.6739,192.54,192.45,4.6757]
[1760968056762,8.72779868,192.57,192.38,8.14977484]
[1760968057065,12.97582813,192.65,192.42,8.14977484]
[1760968057359,4.05537048,192.64,192.42,8.14977484]
[1760968057561,4.05537048,192.63,192.42,8.14977484]
[1760968057763,4.05537048,192.62,192.42,8.14977484]
[1760968058062,4.6724,192.6,192.42,8.14977484]
[1760968058265,4.05537048,192.59,192.42,8.14977484]
[1760968058459,8.14977484,192.61,192.42,8.14977484]
[1760968058768,4.6727,192.59,192.48,4.675]
[1760968058953,8.73246298,192.59,192.48,4.675]
[1760968059151,4.6727,192.59,192.42,8.14977484]
[1760968059350,4.6727,192.59,192.4,9.3542]
[1760968059963,4.06215624,192.6,192.39,12.74]
[1760968060465,4.6715,192.64,192.55,4.6733]
[1760968060666,4.06453122,192.63,192.41,8.14977484]
[1760968060857,4.6715,192.64,192.41,8.14977484]
[1760968061166,4.0638214,192.63,192.43,9.3526]
[1760968061463,8.14977484,192.61,192.39,12.74]
[1760968061858,8.14977484,192.61,192.53,4.6738]
[1760968062065,8.14977484,192.65,192.43,11.04]
[1760968062265,4.06733827,192.64,192.43,11.04]
[1760968062466,4.06733827,192.63,192.54,4.6735]
[1760968062767,4.06733827,192.62,192.54,4.6735]
[1760968063066,8.73873827,192.64,192.54,4.6735]
[1760968063261,4.06733827,192.63,192.45,9.3518]
[1760968063569,4.06733827,192.62,192.45,9.3518]
[1760968063867,12.22348309,192.61,192.45,9.3518]
[1760968064167,8.14977484,192.61,192.53,4.6738]
[1760968064966,8.14977484,192.65,192.42,8.14977484]
[1760968065270,4.07791809,192.64,192.43,6.74]
[1760968065460,4.07791809,192.63,192.43,6.74]
[1760968065767,8.14977484,192.65,192.54,4.6735]
[1760968065768,4.07791809,192.62,192.54,4.6735]
[1760968066070,12.82097484,192.65,192.54,4.6735]
[1760968066257,4.07888978,192.64,192.54,4.6735]
[1760968066454,4.07888978,192.63,192.54,4.6735]
[1760968066666,4.07888978,192.62,192.54,4.6735]
[1760968066869,4.07888978,192.61,192.54,4.6735]
[1760968067070,12.91103103,192.65,192.52,4.6741]
[1760968067270,4.76125619,192.63,192.52,4.6741]
[1760968067467,8.14977484,192.61,192.52,4.6741]
[1760968067658,4.0840202,192.6,192.52,4.6741]
[1760968067858,4.0840202,192.59,192.52,4.6741]
[1760968068062,4.0840202,192.58,192.52,4.6741]
[1760968068263,8.14977484,192.61,192.5,4.6746]
[1760968068463,4.09029389,192.6,192.42,9.3532]
[1760968068766,8.76299389,192.59,192.42,9.3532]
[1760968068966,4.09029389,192.58,192.42,9.3532]
[1760968069165,4.76125619,192.62,192.42,9.3532]
[1760968069166,12.24006873,192.57,192.42,9.3532]
[1760968069361,4.09029389,192.56,192.42,9.3532]
[1760968069562,4.09029389,192.56,192.4,26.12]
[1760968069563,4.09029389,192.55,192.4,26.12]
[1760968069757,4.09029389,192.54,192.4,26.12]
[1760968069961,8.14977484,192.57,192.4,26.12]
[1760968070161,8.76192946,192.56,192.37,44.8355]
[1760968070365,4.08842946,192.55,192.37,44.8355]
[1760968070565,8.76232946,192.54,192.37,44.8355]
[1760968070761,4.08842946,192.53,192.37,44.8355]
[1760968070962,4.6739,192.54,192.37,44.8355]
[1760968071166,4.09269119,192.53,192.37,44.8355]
[1760968071363,4.09269119,192.52,192.37,9.3555]
[1760968071564,4.6739,192.54,192.46,4.6755]
[1760968071770,4.09833172,192.53,192.46,4.6755]
[1760968071973,4.6739,192.54,192.46,4.6755]
[1760968071974,4.09833172,192.52,192.46,4.6755]
[1760968072270,4.10084349,192.51,192.46,4.6755]
[1760968072471,4.6739,192.54,192.46,4.6755]
[1760968072670,4.10129873,192.53,192.46,4.6755]
[1760968072872,4.10129873,192.52,192.46,4.6755]
[1760968073071,4.10129873,192.51,192.46,4.6755]
[1760968073272,4.6739,192.54,192.46,4.6755]
[1760968073474,4.10494338,192.53,192.46,4.6755]
[1760968073664,4.10494338,192.52,192.46,4.6755]
[1760968073862,4.10494338,192.51,192.46,4.6755]
[1760968074076,4.76125619,192.55,192.46,4.6755]
[1760968074271,4.10494222,192.54,192.46,4.6755]
[1760968074475,8.91162346,192.53,192.46,4.6755]
[1760968074776,8.91162346,192.52,192.46,4.6755]
[1760968074967,8.91162346,192.51,192.46,4.6755]
[1760968075167,8.91162346,192.5,192.46,4.6755]
[1760968075368,4.76125619,192.55,192.46,4.6755]
[1760968075581,8.91667125,192.54,192.46,4.6755]
[1760968075875,8.91667125,192.53,192.46,4.6755]
[1760968076070,8.91667125,192.52,192.33,8.14977484]
[1760968076270,8.14977484,192.57,192.34,29.24]
[1760968076462,8.89058692,192.56,192.34,29.24]
[1760968076664,8.89058692,192.55,192.37,8.14977484]
[1760968076862,12.91103103,192.61,192.37,8.14977484]
[1760968077067,13.56404059,192.6,192.42,9.353]
[1760968077264,8.89164059,192.59,192.42,9.353]
[1760968077467,8.89164059,192.58,192.42,9.353]
[1760968077667,4.08339723,192.57,192.42,9.353]
[1760968077865,4.08339723,192.56,192.42,9.353]
[1760968078069,4.67563628,192.59,192.42,9.353]
[1760968078382,4.08298131,192.58,192.51,4.6743]
[1760968078578,4.08298131,192.57,192.51,4.6743]
[1760968078878,4.67479447,192.6,192.51,4.6743]
[1760968079078,8.75699986,192.59,192.51,4.6743]
[1760968079281,4.08220539,192.58,192.52,4.6741]
[1760968079575,4.67436063,192.6,192.52,4.6741]
[1760968079774,8.14977484,192.61,192.41,26.46]
[1760968079775,8.7561864,192.59,192.53,4.6738]
[1760968080079,4.08182577,192.58,192.41,26.46]
[1760968080277,4.67406466,192.6,192.45,9.3518]
[1760968080469,4.08163383,192.59,192.45,9.3518]
[1760968080667,8.14977484,192.61,192.45,9.3518]
[1760968080965,4.67436108,192.63,192.45,9.3518]
[1760968081169,4.08218082,192.62,192.41,34.60977484]
[1760968081371,8.14977484,192.65,192.41,34.60977484]
[1760968081571,4.08117731,192.64,192.41,34.60977484]
[1760968081768,8.14977484,192.65,192.47,9.3509]
[1760968081971,8.7468451,192.64,192.41,8.14977484]
[1760968082172,8.14977484,192.65,192.41,44.42977484]
[1760968082173,8.7468451,192.63,192.41,44.42977484]
[1760968082372,8.7468451,192.62,192.41,44.42977484]
[1760968082568,12.91103103,192.65,192.42,9.3533]
[1760968082569,4.6724,192.6,192.42,9.3533]
[1760968082976,4.6728,192.58,192.47,4.6754]
[1760968083178,8.14977484,192.61,192.42,9.3533]
[1760968083379,8.74616164,192.6,192.42,9.3533]
[1760968083582,8.75267857,192.59,192.5,4.6745]
[1760968083782,4.6725,192.59,192.5,4.6745]
[1760968086075,8.7521761,192.59,192.5,4.6745]
[1760968086271,4.6725,192.59,192.5,4.6745]
[1760968086980,4.6725,192.59,192.51,4.6743]
[1760968087182,4.6725,192.59,192.43,9.3526]
[1760968087581,4.07998727,192.6,192.4,30.6]
[1760968087779,12.82187484,192.61,192.4,30.6]
[1760968088092,8.14977484,192.61,192.54,4.6735]
[1760968089186,8.14977484,192.61,192.55,4.6733]
[1760968089385,8.14977484,192.65,192.41,50.72977484]
[1760968089588,8.14977484,192.65,192.42,12.86301169]
[1760968089785,8.14977484,192.65,192.45,8.14977484]
[1760968089990,8.14977484,192.69,192.45,8.14977484]
[1760968090190,4.6707,192.67,192.45,8.14977484]
[1760968090385,8.75317861,192.67,192.45,8.14977484]
[1760968090587,4.81699548,192.73,192.45,8.14977484]
[1760968090793,4.81699548,192.73,192.51,9.3486]
[1760968090794,4.67,192.7,192.51,9.3486]
[1760968091090,4.08310695,192.69,192.45,21.01278653]
[1760968091387,4.08310695,192.7,192.5,8.14977484]
[1760968091585,4.08310695,192.71,192.5,8.14977484]
[1760968091784,4.08310695,192.7,192.5,8.14977484]
[1760968092087,4.08310695,192.69,192.45,12.86301169]
[1760968092282,8.14977484,192.67,192.43,12.86301169]
[1760968092481,22.03001933,192.75,192.43,9.3528]
[1760968092482,4.6726,192.59,192.43,9.3528]
[1760968092688,8.14977484,192.62,192.43,9.3528]
[1760968092986,4.6724,192.6,192.5,4.6745]
[1760968093183,4.08058617,192.61,192.4,17.34]
[1760968093382,12.96677032,192.66,192.4,17.34]
[1760968093383,8.14977484,192.57,192.4,17.34]
[1760968093893,12.82287484,192.57,192.47,4.6753]
[1760968094992,8.14977484,192.57,192.38,33.32]
[1760968095392,8.14977484,192.57,192.4,9.3542]
[1760968095891,8.14977484,192.57,192.46,4.6755]
[1760968096288,8.14977484,192.57,192.39,44.04]
[1760968096593,8.14977484,192.57,192.36,56.90301169]
[1760968096794,4.6735,192.55,192.45,4.6757]
[1760968096993,8.14977484,192.57,192.37,9.3557]
[1760968097595,8.14977484,192.57,192.47,4.6752]
[1760968097796,8.14977484,192.57,192.38,9.3552]
[1760968097990,8.14977484,192.57,192.38,12.86301169]
[1760968098293,8.14977484,192.61,192.41,9.3535]
[1760968098495,4.08763163,192.6,192.41,9.3535]
[1760968099087,4.08746805,192.59,192.42,44.04]
[1760968099288,8.14977484,192.61,192.42,44.04]
[1760968099492,4.08918047,192.6,192.42,44.04]
[1760968099687,4.08918047,192.59,192.42,44.04]
[1760968099892,4.6724,192.6,192.49,4.6747]
[1760968100094,4.6724,192.6,192.41,53.3935]
[1760968100585,4.08998074,192.59,192.41,53.3935]
[1760968100897,4.6724,192.6,192.41,53.3935]
[1760968101095,4.08913502,192.59,192.49,4.6748]
[1760968101296,4.6724,192.6,192.49,4.6748]
[1760968101594,4.0906016,192.59,192.51,4.6743]
[1760968101786,8.14977484,192.61,192.51,4.6743]
[1760968101983,4.09071082,192.6,192.51,4.6743]
[1760968102193,4.09071082,192.59,192.49,4.6749]
[1760968102388,4.09066841,192.58,192.49,4.6749]
[1760968102588,4.67739444,192.6,192.49,4.6749]
[1760968102786,4.09055915,192.59,192.49,4.6749]
[1760968102988,4.09055915,192.58,192.49,4.6749]
[1760968103187,4.67739444,192.6,192.47,4.6754]
[1760968103387,8.14977484,192.56,192.47,4.6754]
[1760968103596,8.14977484,192.56,192.41,44.04]
[1760968103785,8.14977484,192.56,192.47,4.6752]
[1760968103985,8.14977484,192.56,192.41,44.04]
[1760968104187,8.14977484,192.56,192.45,4.6758]
[1760968104501,8.14977484,192.56,192.41,44.04]
[1760968106399,4.6743,192.52,192.43,4.6763]
[1760968106596,8.14977484,192.56,192.41,44.04]
[1760968106805,35.32001933,192.63,192.41,44.04]
[1760968106806,5.39668012,192.55,192.47,4.6752]
[1760968107195,5.39668012,192.55,192.41,44.04]
[1760968107400,10.07028012,192.55,192.44,4.6761]
[1760968107598,10.07028012,192.55,192.41,44.04]
[1760968108001,10.07028012,192.55,192.39,44.04]
[1760968108803,10.07028012,192.55,192.37,12.86301169]
[1760968109002,10.07028012,192.55,192.46,4.6755]
[1760968109196,5.39668012,192.55,192.4,44.04]
[1760968109403,5.39668012,192.58,192.4,44.04]
[1760968109700,10.06958012,192.58,192.4,44.04]
[1760968110704,10.06958012,192.58,192.41,44.04]
[1760968111297,10.06958012,192.58,192.49,4.6748]
[1760968112894,4.6731,192.57,192.49,4.6748]
[1760968113915,4.6731,192.57,192.5,4.6745]
[1760968114097,5.39668012,192.58,192.43,19.12]
[1760968114604,4.08328905,192.57,192.43,19.12]
[1760968114804,4.08328905,192.56,192.43,19.12]
[1760968115101,5.39668012,192.58,192.43,19.12]
[1760968115408,5.39668012,192.54,192.43,19.12]
[1760968115699,4.6734,192.56,192.43,19.12]
[1760968115905,5.39668012,192.54,192.43,19.12]
[1760968116306,5.39668012,192.54,192.47,4.6753]
[1760968117209,4.08364161,192.53,192.45,4.6758]
[1760968117508,10.07048012,192.54,192.45,4.6758]
[1760968117708,5.39668012,192.54,192.43,19.12]
[1760968118008,5.39668012,192.54,192.46,4.6755]
[1760968118603,5.39668012,192.58,192.43,19.12]
[1760968118808,4.08519749,192.57,192.4,46.8341]
[1760968119107,4.08519749,192.56,192.4,53.3941]
[1760968119306,5.39668012,192.58,192.4,53.3941]
[1760968119610,4.08533286,192.57,192.4,53.3941]
[1760968119797,4.08533286,192.56,192.4,53.3941]
[1760968119997,4.08533286,192.55,192.4,53.3941]
[1760968120307,5.39668012,192.58,192.4,53.3941]
[1760968120508,4.6736,192.55,192.47,4.6753]
[1760968120706,2.15862912,192.51,192.47,4.6753]
[1760968121306,2.15862912,192.51,192.45,4.6758]
[1760968121707,2.15862912,192.51,192.46,4.6755]
[1760968122504,2.15862912,192.51,192.44,4.6761]
[1760968122908,2.15862912,192.51,192.4,2.15862912]
[1760968124009,2.15862912,192.51,192.45,4.6758]
[1760968124702,2.15862912,192.51,192.4,2.15862912]
[1760968125705,2.15862912,192.51,192.42,2.15862912]
[1760968126312,4.08503728,192.53,192.43,4.6763]
[1760968126515,2.15862912,192.49,192.38,2.15862912]
[1760968126710,2.15862912,192.5,192.4,2.15862912]
[1760968126910,2.15862912,192.52,192.42,2.15862912]
[1760968127113,4.08617022,192.55,192.42,2.15862912]
[1760968127114,4.08617022,192.54,192.42,2.15862912]
[1760968127320,2.15862912,192.52,192.45,4.6759]
[1760968129318,2.15862912,192.52,192.46,4.6755]
[1760968129717,2.15862912,192.52,192.39,2.15862912]
[1760968130111,2.15862912,192.52,192.47,4.6753]
[1760968131210,2.15862912,192.52,192.41,2.15862912]
[1760968131418,2.15862912,192.54,192.44,2.15862912]
[1760968131619,2.15862912,192.56,192.46,2.15862912]
[1760968132211,2.15862912,192.56,192.5,4.6746]
[1760968132525,15.59,192.64,192.43,41.84]
[1760968132526,6.2450492,192.58,192.48,2.15862912]
[1760968132720,2.15862912,192.56,192.5,4.6746]
[1760968132919,2.15862912,192.54,192.44,2.15862912]
[1760968133724,2.15862912,192.54,192.49,4.6748]
[1760968134316,2.15862912,192.54,192.5,4.6746]
[1760968138817,2.15862912,192.51,192.41,21.48]
[1760968139129,2.15862912,192.5,192.41,21.48]
[1760968139628,2.15862912,192.5,192.41,23.63862912]
[1760968139827,2.15862912,192.52,192.41,23.63862912]
[1760968140329,2.15862912,192.52,192.47,4.6753]
[1760968140527,4.64304194,192.56,192.43,2.15862912]
[1760968140833,2.15862912,192.59,192.48,2.15862912]
[1760968141028,4.11529253,192.58,192.54,4.6736]
[1760968141329,2.15862912,192.59,192.54,4.6736]
[1760968141528,2.15862912,192.59,192.52,4.6741]
[1760968141730,2.15862912,192.59,192.48,2.15862912]
[1760968142226,2.15862912,192.61,192.54,4.6735]
[1760968142925,2.15862912,192.63,192.52,2.15862912]
[1760968143121,4.64246297,192.66,192.56,2.15862912]
[1760968143324,2.15862912,192.66,192.6,4.672]
[1760968143622,2.15862912,192.66,192.56,2.15862912]
[1760968144027,2.15862912,192.66,192.6,4.672]
[1760968144619,2.15862912,192.66,192.58,4.6727]
[1760968144925,2.15862912,192.63,192.53,2.15862912]
[1760968145126,2.15862912,192.6,192.55,4.6733]
[1760968145634,2.15862912,192.6,192.5,17.58]
[1760968145930,2.15862912,192.6,192.51,2.15862912]
[1760968146134,4.6708,192.67,192.51,2.15862912]
[1760968146319,4.81699548,192.69,192.51,2.15862912]
[1760968146320,2.15862912,192.61,192.51,2.15862912]
[1760968146517,2.15862912,192.61,192.55,4.6733]
[1760968146727,2.15862912,192.63,192.53,2.15862912]
[1760968147228,2.15862912,192.65,192.58,4.6727]
[1760968147734,2.15862912,192.62,192.56,4.6732]
[1760968148229,2.15862912,192.6,192.51,46.15862912]
[1760968148431,4.10553617,192.67,192.51,46.15862912]
[1760968148633,2.15862912,192.6,192.51,46.15862912]
[1760968148932,2.15862912,192.6,192.51,44.0]
[1760968149637,2.15862912,192.61,192.51,44.0]
[1760968149827,2.15862912,192.61,192.5,2.15862912]
[1760968150936,4.52904236,192.68,192.48,44.0]
[1760968150937,2.15862912,192.58,192.48,44.0]
[1760968151136,2.15862912,192.58,192.47,2.15862912]
[1760968151434,9.66002899,192.72,192.49,4.6748]
[1760968151435,2.15862912,192.55,192.49,4.6748]
[1760968151827,2.15862912,192.52,192.43,2.15862912]
[1760968152028,2.15862912,192.52,192.45,4.6758]
[1760968152537,9.34504261,192.61,192.4,136.69862912]
[1760968152538,2.15862912,192.5,192.4,136.69862912]
[1760968152727,4.6739,192.54,192.4,134.54]
[1760968152927,5.39675768,192.55,192.4,134.54]
[1760968153126,5.39675768,192.51,192.4,134.54]
[1760968154231,5.39675768,192.51,192.4,178.54]
[1760968154539,5.39675768,192.51,192.31,14.75525768]
[1760968154726,5.39675768,192.51,192.32,44.0]
[1760968154927,5.39675768,192.51,192.42,4.6764]
[1760968155137,5.39675768,192.51,192.35,5.39675768]
[1760968155538,5.39675768,192.51,192.41,4.6766]
[1760968155733,5.39675768,192.51,192.35,5.39675768]
[1760968156136,5.39675768,192.51,192.41,4.6766]
[1760968156435,5.39675768,192.51,192.38,29.56]
[1760968156626,5.39675768,192.51,192.31,5.39675768]
[1760968156830,5.39675768,192.51,192.43,4.6762]
[1760968157022,5.39675768,192.51,192.39,44.0]
[1760968157228,5.39675768,192.51,192.35,5.39675768]
[1760968157436,5.39675768,192.51,192.44,4.6759]
[1760968157640,5.39675768,192.55,192.43,14.74]
[1760968157937,5.39675768,192.55,192.35,5.39675768]
[1760968157938,5.39675768,192.55,192.39,5.39675768]
[1760968158236,5.39675768,192.55,192.4,13.7]
[1760968158432,5.39675768,192.55,192.38,9.3552]
[1760968158632,5.39675768,192.55,192.46,4.6754]
[1760968158833,5.39675768,192.55,192.39,19.74]
[1760968159332,5.39675768,192.55,192.47,4.6752]
[1760968159939,5.39675768,192.55,192.45,4.6758]
[1760968161438,5.39675768,192.55,192.42,4.6764]
[1760968161832,8.77362308,192.54,192.42,4.6764]
[1760968162533,8.77362308,192.54,192.43,4.6762]
[1760968162829,4.6739,192.54,192.43,4.6762]
[1760968163432,5.39675768,192.53,192.44,4.6759]
[1760968163631,10.07085768,192.53,192.37,24.6]
[1760968164041,10.07085768,192.53,192.44,4.6761]
[1760968164229,10.07085768,192.53,192.37,24.6]
[1760968164433,10.07085768,192.53,192.42,4.6764]
[1760968164633,5.39675768,192.53,192.37,24.6]
[1760968164830,4.6735,192.55,192.37,24.6]
[1760968165031,5.39675768,192.56,192.44,4.676]
[1760968165241,4.09846512,192.55,192.44,4.676]
[1760968165445,4.6739,192.53,192.44,4.676]
[1760968166046,8.77186512,192.55,192.38,14.74]
[1760968166242,4.1610442,192.54,192.38,14.74]
[1760968166439,4.6734,192.55,192.38,14.74]
[1760968166742,8.8342647,192.55,192.38,14.74]
[1760968166941,8.8342647,192.55,192.45,4.6757]
[1760968167539,8.8342647,192.55,192.46,4.6754]
[1760968167742,4.1608647,192.55,192.38,20.13675768]
[1760968167940,4.1608647,192.55,192.39,9.3544]
[1760968168138,9.55762238,192.59,192.39,9.3544]
[1760968168346,5.39675768,192.59,192.38,20.13675768]
[1760968168646,5.39675768,192.59,192.42,5.39675768]
[1760968168833,4.16180225,192.61,192.52,4.674]
[1760968169036,4.6719,192.62,192.52,4.674]
[1760968169233,4.16194432,192.63,192.4,8.13777311]
[1760968169446,4.16121902,192.63,192.4,8.13777311]
[1760968169642,4.81699548,192.7,192.45,8.13777311]
[1760968169836,8.8312614,192.69,192.46,6.7]
[1760968170046,8.8312614,192.69,192.42,15.59]
[1760968170047,4.1611614,192.68,192.47,43.8103]
[1760968170244,4.1611614,192.67,192.47,43.8103]
[1760968170445,4.16019577,192.7,192.47,34.46]
[1760968170650,4.16019577,192.69,192.47,34.46]
[1760968170846,8.83049577,192.68,192.58,4.6725]
[1760968171039,4.16019577,192.67,192.58,4.6725]
[1760968171239,4.6703,192.68,192.59,4.6723]
[1760968172150,8.82906711,192.7,192.6,4.672]
[1760968172341,4.15916711,192.69,192.53,18.04]
[1760968172843,4.15916711,192.69,192.6,4.672]
[1760968173048,4.15916711,192.71,192.6,4.672]
[1760968173244,4.15916711,192.7,192.6,4.672]
[1760968173450,4.15916711,192.69,192.6,4.672]
[1760968173643,4.6699,192.7,192.6,4.672]
[1760968173843,4.15916711,192.69,192.6,4.672]
[1760968174039,4.15916711,192.69,192.54,4.44]
[1760968174246,4.15916711,192.71,192.55,16.42]
[1760968174547,4.15916711,192.71,192.56,16.7]
[1760968174740,4.15916711,192.71,192.53,9.3475]
[1760968174940,4.15916711,192.73,192.54,14.4]
[1760968175145,4.15916711,192.72,192.54,14.4]
[1760968175348,4.15916711,192.73,192.54,14.4]
[1760968175547,4.15916711,192.72,192.54,14.4]
[1760968175752,8.82836711,192.73,192.54,14.4]
[1760968175953,4.15916711,192.72,192.54,14.4]
[1760968176147,4.15916711,192.72,192.63,4.6713]
[1760968176346,4.6692,192.73,192.63,4.6713]
[1760968176748,8.82836711,192.73,192.63,4.6713]
[1760968176949,4.15916711,192.72,192.63,4.6713]
[1760968177654,4.6692,192.73,192.61,4.6719]
[1760968177858,4.6692,192.73,192.57,10.96]
[1760968178162,4.6695,192.72,192.62,4.6715]
[1760968178351,8.82866711,192.72,192.62,4.6715]
[1760968178549,4.6695,192.72,192.62,4.6715]
[1760968179449,8.82064073,192.72,192.62,4.6715]
[1760968179650,4.6695,192.72,192.62,4.6715]
[1760968180150,4.15022472,192.74,192.62,4.6715]
[1760968180453,4.15022472,192.75,192.56,10.96]
[1760968180851,4.6688,192.74,192.65,4.6708]
[1760968181354,4.6688,192.74,192.57,23.44]
[1760968182056,4.6688,192.74,192.58,29.76]
[1760968182955,4.6688,192.74,192.64,4.671]
[1760968183959,4.6688,192.74,192.56,9.3463]
[1760968183960,4.6688,192.74,192.65,4.6707]
[1760968184253,4.6688,192.74,192.54,8.13777311]
[1760968184254,4.15022472,192.75,192.59,16.16]
[1760968184451,9.66002899,192.83,192.59,16.16]
[1760968184452,4.15022472,192.77,192.71,4.6694]
[1760968184655,4.15022472,192.78,192.71,4.6694]
[1760968184849,4.15022472,192.8,192.59,24.29777311]
[1760968185049,4.82708508,192.81,192.59,24.29777311]
[1760968185050,4.15022472,192.79,192.59,24.29777311]
[1760968185246,4.15022472,192.78,192.6,8.13777311]
[1760968185447,4.15022472,192.8,192.6,8.13777311]
[1760968185652,4.15022472,192.79,192.7,4.6695]
[1760968185853,4.82708508,192.81,192.7,4.6695]
[1760968185854,4.15022472,192.78,192.7,4.6695]
[1760968186055,4.15022472,192.8,192.7,4.6695]
[1760968186354,4.15022472,192.79,192.7,4.6695]
[1760968186548,4.15022472,192.78,192.65,28.22]
[1760968186852,6.44001933,192.83,192.68,4.6702]
[1760968186853,17.11508291,192.8,192.68,4.6702]
[1760968187054,4.15022472,192.79,192.68,4.6702]
[1760968187254,4.15022472,192.78,192.68,4.6702]
[1760968187454,4.15022472,192.79,192.68,4.6702]
[1760968187653,4.15022472,192.78,192.68,4.6702]
[1760968187854,8.81792472,192.79,192.69,4.6698]
[1760968188051,4.15022472,192.78,192.64,18.22]
[1760968188260,4.15022472,192.79,192.56,15.88794094]
[1760968188458,8.13777311,192.8,192.49,15.59]
[1760968188459,4.15022472,192.78,192.59,8.13777311]
[1760968188660,4.15022472,192.79,192.71,4.6693]
[1760968188964,4.15022472,192.78,192.71,4.6693]
[1760968189166,4.15022472,192.79,192.71,4.6693]
[1760968189367,4.15022472,192.78,192.72,4.6691]
[1760968189666,4.15022472,192.79,192.72,4.6691]
[1760968190365,8.13777311,192.8,192.72,4.6691]
[1760968192667,8.13777311,192.8,192.65,18.58]
[1760968192967,8.13777311,192.8,192.65,29.84]
[1760968193267,8.13777311,192.8,192.65,40.54]
[1760968193468,8.13777311,192.8,192.65,43.96]
[1760968193658,8.13777311,192.8,192.62,9.3434]
[1760968193859,12.80527311,192.8,192.63,43.96]
[1760968194057,8.13777311,192.8,192.63,43.96]
[1760968194266,4.668,192.78,192.56,8.13777311]
[1760968194466,4.668,192.78,192.57,43.96]
[1760968194672,8.13777311,192.8,192.59,9.3448]
[1760968194965,4.6682,192.77,192.6,19.52]
[1760968195170,4.6682,192.77,192.59,9.3448]
[1760968195361,4.6682,192.77,192.6,14.4]
[1760968195559,4.6682,192.77,192.68,4.6701]
[1760968195961,4.6676,192.79,192.68,4.6701]
[1760968196668,8.13777311,192.8,192.6,14.4]
[1760968197065,12.80527311,192.8,192.7,4.6697]
[1760968197371,8.13777311,192.8,192.62,9.3434]
[1760968197668,8.13777311,192.8,192.62,28.9034]
[1760968197866,8.13777311,192.8,192.57,9.3454]
[1760968198068,9.3329,192.84,192.57,9.3454]
[1760968198069,8.13777311,192.75,192.58,14.4]
[1760968199258,8.13777311,192.75,192.59,9.3449]
[1760968200165,8.13777311,192.75,192.67,4.6703]
[1760968200365,8.13777311,192.75,192.61,20.6]
[1760968200868,8.13777311,192.75,192.6,9.3443]
[1760968200869,8.13777311,192.75,192.68,4.6701]
[1760968201068,8.13777311,192.75,192.62,33.42]
[1760968201267,8.13777311,192.75,192.62,43.94]
[1760968201465,8.13777311,192.75,192.68,4.6702]
[1760968201672,8.13777311,192.75,192.62,10.94]
[1760968201971,8.13777311,192.75,192.67,4.6703]
[1760968202769,8.13777311,192.75,192.65,4.6708]
[1760968202971,8.13777311,192.75,192.61,10.94]
[1760968203274,9.3329,192.84,192.58,4.6725]
[1760968203275,8.13777311,192.7,192.58,4.6725]
[1760968203670,8.13777311,192.7,192.56,4.673]
[1760968203869,8.13777311,192.65,192.4,8.13777311]
[1760968204168,8.13777311,192.65,192.41,9.3534]
[1760968204358,8.13777311,192.65,192.43,43.94]
[1760968204563,8.13777311,192.65,192.41,9.3534]
[1760968204868,8.13777311,192.65,192.43,43.94]
[1760968205069,8.13777311,192.65,192.41,9.3534]
[1760968205274,4.6721,192.61,192.43,43.94]
[1760968205475,4.6721,192.61,192.44,43.94]
[1760968205676,8.13777311,192.6,192.44,43.94]
[1760968205970,8.13777311,192.6,192.5,4.6744]
[1760968206278,8.13777311,192.64,192.45,43.94]
[1760968206466,8.13777311,192.64,192.43,9.3525]
[1760968207460,8.13777311,192.59,192.43,9.3525]
[1760968207662,8.13777311,192.59,192.37,9.3554]
[1760968208271,8.13777311,192.59,192.49,4.6747]
[1760968208574,4.6727,192.58,192.37,9.3554]
[1760968208878,8.13777311,192.59,192.47,4.6753]